fUSD/lending_fUSD_20251128
["ID","MTS","AMOUNT","RATE_DAILY","PERIOD"]
[395007116,1764315917229,150.0,0.00015288,2]
[395007117,1764315917689,150.0,0.00015288,2]
[395007118,1764315924297,196.0812141,0.00015288,2]
[395007119,1764315924365,152.22579764,0.00015288,2]
[395007120,1764315927400,150.0,0.00015288,2]
[395007121,1764315930188,150.0,0.00015288,2]
[395007122,1764315932943,150.0,0.00015288,2]
[395007123,1764316021144,479.0,0.00022,30]
[395007124,1764316051021,156.51,8.082e-05,2]
[395007125,1764316051221,156.51,0.00010103,2]
[395007126,1764316051451,156.51,0.00012123,2]
[395007127,1764316051649,156.51,0.00014144,2]
[395007128,1764316177171,307.01162033,0.00012123,2]
[395007139,1764316232099,-150.0,0.00015854,2]
[395007140,1764316232109,-150.0,0.00016137,2]
[395007141,1764316232119,-150.0,0.00016137,2]
[395007142,1764316232128,-150.0,0.00016137,2]
[395007143,1764316232138,-156.51,0.00016164,2]
[395007144,1764316232147,-596.95,0.00016297,2]
[395007145,1764316232157,-150.0,0.0001642,2]
[395007146,1764316232166,-3183.95,0.00016438,2]
[395007147,1764316232176,-1200.0,0.00016641,2]
[395007148,1764316232185,-1852.42,0.00016642,2]
[395007149,1764316232194,-427.35550804,0.00016781,2]
[395007150,1764316232204,-300.0,0.00016799,2]
[395007151,1764316232214,-551.8,0.000168,2]
[395007152,1764316232223,-150.0,0.000168,2]
[395007153,1764316232233,-150.0,0.000168,2]
[395007154,1764316232246,-1109.63,0.000168,2]
[395007155,1764316232256,-150.0,0.000168,2]
[395007156,1764316232266,-1572.56163432,0.000168,2]
[395007157,1764316232276,-150.0,0.000168,2]
[395007158,1764316232285,-150.0,0.000168,2]
[395007159,1764316232295,-150.0,0.000168,2]
[395007160,1764316232305,-150.0,0.000168,2]
[395007161,1764316232315,-150.0,0.000168,2]
[395007162,1764316232324,-1411.22895,0.0001683,2]
[395007163,1764316232334,-169.87643469,0.000169,2]
[395007164,1764316232344,-1421.15567846,0.000169,2]
[395007165,1764316232354,-29566.0804,0.000169,2]
[395007166,1764316232364,-1000.0,0.000169,2]
[395007167,1764316232373,-1000.0,0.000169,2]
[395007169,1764316232382,-2500.0,0.000169,2]
[395007171,1764316232391,-538.1316675,0.000169,2]
[395007173,1764316232401,-2258.37216905,0.000169,2]
[395007175,1764316232411,-654.33918645,0.000169,2]
[395007177,1764316232420,-1586.33817492,0.000169,2]
[395007179,1764316232430,-1036.68421689,0.000169,2]
[395007181,1764316232439,-2508.5330605,0.000169,2]
[395007183,1764316232448,-218.02088635,0.0001695,2]
[395007185,1764316232458,-500.0,0.00016973,2]
[395007187,1764316232467,-500.0,0.00016973,2]
[395007189,1764316232475,-471.99204975,0.00016973,2]
[395007191,1764316232484,-500.0,0.00016973,2]
[395007192,1764316232493,-215.63620973,0.00016973,2]
[395007194,1764316232502,-157.95425099,0.00016986,2]
[395007197,1764316232512,-155.46570041,0.00016986,2]
[395007200,1764316232521,-155.97172292,0.00016986,2]
[395007203,1764316232530,-159.58735843,0.00016986,2]
[395007206,1764316232539,-210.40647391,0.00016986,2]
[395007209,1764316232548,-152.83368149,0.00016986,2]
[395007212,1764316232558,-159.12089916,0.00016986,2]
[395007214,1764316232566,-196.83392466,0.0001699,2]
[395007216,1764316232575,-196.83392466,0.0001699,2]
[395007217,1764316232584,-284.32992244,0.0001699,2]
[395007219,1764316232594,-508.87300051,0.00016999,2]
[395007221,1764316232603,-510.74534266,0.00016999,2]
[395007223,1764316232613,-510.24939006,0.00016999,2]
[395007226,1764316232622,-504.37008911,0.00016999,2]
[395007228,1764316232635,-300.0,0.00016999,2]
[395007230,1764316232645,-300.0,0.00016999,2]
[395007232,1764316232653,-199.19879029,0.00016999,2]
[395007234,1764316232663,-244.79647996,0.00016999,2]
[395007235,1764316232672,-500.0,0.00016999,2]
[395007237,1764316232686,-500.0,0.00016999,2]
[395007239,1764316232696,-214.99233566,0.00016999,2]
[395007241,1764316232705,-78943.43208604,0.00017,2]
[395007243,1764316232898,-9982.64193555,0.00017,2]
[395007244,1764316232909,-9042.6,0.00017,2]
[395007245,1764316232920,-535.30810618,0.00017,2]
[395007247,1764316238188,-3448.8,0.00017,2]
[395007248,1764316240271,-980967.02019818,0.00017,2]
[395007249,1764316240411,-4575.0,0.00017,2]
[395007259,1764316246401,-10059.75795831,0.00017,2]
[395007260,1764316246574,-565.59303873,0.00017,2]
[395007262,1764316504236,165.0,0.00021318,120]
[395007263,1764316505482,165.0,0.00022384,120]
[395007270,1764316812007,-180.805,0.00015754,2]
[395007271,1764316812032,-500.0,0.00015754,2]
[395007272,1764316812054,-493.80145608,0.00015754,2]
[395007273,1764316812079,-53.84589594,0.00015754,2]
[395007274,1764316849956,160.35,0.00019178,30]
[395007278,1764317106782,150.0,0.00015288,2]
[395007279,1764317106852,122.02512906,0.00015288,2]
[395007280,1764317106876,27.97487094,0.00015288,2]
[395007281,1764317107004,294.21526008,0.00015288,2]
[395007282,1764317114667,150.0,0.00015288,2]
[395007283,1764317115338,150.0,0.00015288,2]
[395007284,1764317122357,150.0,0.00015288,2]
[395007290,1764317432413,-150.0,0.00016234,2]
[395007291,1764317432423,-200.0,0.00016274,2]
[395007292,1764317432432,-71.12268349,0.00016312,3]
[395007293,1764317432443,-682.4973489,0.00016312,3]
[395007306,1764317438507,-245.37996761,0.00016312,3]
[395007307,1764317438518,-425.76,0.00016438,2]
[395007308,1764317438528,-2352.5046904,0.00016646,2]
[395007342,1764317440472,-1703.9953096,0.00016646,2]
[395007343,1764317440483,-200.0,0.00016821,2]
[395007344,1764317440492,-218.02088636,0.00016843,2]
[395007345,1764317440504,-1200.0,0.00016871,2]
[395007346,1764317440513,-300.0,0.00016871,2]
[395007347,1764317440522,-300.0,0.00016871,2]
[395007348,1764317440532,-219.0,0.00016872,2]
[395007349,1764317440541,-500.0,0.00016873,2]
[395007350,1764317440550,-427.35550804,0.00016889,2]
[395007351,1764317440559,-410.178,0.00016899,2]
[395007352,1764317440568,-171.04922249,0.00016899,2]
[395007353,1764317440577,-76.8748989,0.00016899,2]
[395007354,1764317440588,-194.75761461,0.00016899,2]
[395007355,1764317440597,-907.09868977,0.00016899,2]
[395007356,1764317440606,-168.11641432,0.000169,2]
[395007357,1764317440843,-1.7e-07,0.000169,2]
[395007358,1764317440855,-284.18178551,0.000169,2]
[395007359,1764317440864,-169.87643469,0.000169,2]
[395007360,1764317440873,-1279.72408617,0.000169,2]
[395007361,1764317440882,-358.754445,0.000169,2]
[395007362,1764317440891,-167.21842092,0.000169,2]
[395007363,1764317440900,-1057.55878328,0.000169,2]
[395007364,1764317440910,-545.28265535,0.000169,2]
[395007365,1764317440919,-1672.35537366,0.000169,2]
[395007366,1764317440928,-300.0,0.00016972,2]
[395007367,1764317440937,-150.53363931,0.00016973,2]
[395007368,1764317440947,-500.0,0.00016973,2]
[395007369,1764317440956,-500.99083699,0.00016973,2]
[395007370,1764317440965,-500.0,0.00016973,2]
[395007371,1764317440978,-437.75650471,0.00016973,2]
[395007372,1764317440987,-150.0,0.00016986,2]
[395007373,1764317440996,-196.83392467,0.0001699,2]
[395007375,1764317441006,-463.35456518,0.00016995,2]
[395007376,1764317441016,-189.9429194,0.00016995,2]
[395007378,1764317441024,-12627.1229958,0.00016996,2]
[395007379,1764317441033,-419776.1485281,0.00016996,2]
[395007380,1764317441042,-300.0,0.00016999,2]
[395007381,1764317441051,-539339.38429944,0.00017,2]
[395007400,1764317855509,-208.53694,0.00016576,2]
[395007401,1764317855533,-250.0,0.00016618,2]
[395007402,1764317855554,-328.143,0.0001666,2]
[395007403,1764317855575,-888.06,0.00016714,2]
[395007404,1764317855597,-164.31282852,0.00016796,2]
[395007405,1764317855623,-1200.0,0.00016895,2]
[395007406,1764317855644,-300.0,0.00016895,2]
[395007407,1764317855667,-1200.0,0.00016895,2]
[395007408,1764317855689,-300.0,0.00016895,2]
[395007411,1764317879796,685.08512867,0.000168,2]
[395007412,1764317890117,-764.07210281,0.00016896,2]
[395007435,1764318631460,-1852.42,0.0001607,2]
[395007437,1764318631469,-166.66,0.00016404,2]
[395007440,1764318631479,-1000.0,0.00016423,2]
[395007443,1764318631488,-2653.29,0.00016438,2]
[395007446,1764318631498,-250.0,0.00016466,2]
[395007447,1764318631507,-1200.0,0.00016589,2]
[395007448,1764318631519,-4705.29336345,0.00016591,2]
[395007449,1764318631534,-2108.24663655,0.00016591,2]
[395007450,1764318631543,-166.66,0.0001675,2]
[395007451,1764318631552,-1602.73678782,0.00016893,2]
[395007452,1764318631561,-58.09347186,0.00016894,2]
[395007574,1764318637545,-558.76146359,0.00016796,2]
[395007575,1764318637556,-290.26344508,0.00016796,2]
[395007577,1764318639574,-747.34011015,0.00016796,2]
[395007578,1764318639697,-124035.84808118,0.00016796,2]
[395007579,1764318639707,-1544.64331589,0.00016894,2]
[395007580,1764318639717,-1602.73678775,0.00016895,2]
[395007581,1764318639727,-262.514,0.00016895,2]
[395007582,1764318639736,-1602.73678775,0.00016895,2]
[395007583,1764318639746,-1602.73678775,0.00016896,2]
[395007584,1764318639756,-1602.73678775,0.00016897,2]
[395007585,1764318639767,-1602.73678775,0.00016898,2]
[395007586,1764318639777,-1602.73678775,0.00016898,2]
[395007587,1764318639786,-1602.73678775,0.00016899,2]
[395007588,1764318639796,-1096.90635954,0.000169,2]
[395007589,1764318639805,-793.71135354,0.000169,2]
[395007590,1764318639815,-1602.73678775,0.000169,2]
[395007591,1764318639829,-239.16963,0.000169,2]
[395007592,1764318639838,-705.03918884,0.000169,2]
[395007593,1764318639849,-1881.9768075,0.000169,2]
[395007594,1764318639859,-500.0,0.00016973,2]
[395007595,1764318639869,-164.97579147,0.00016973,2]
[395007596,1764318639878,-500.0,0.00016973,2]
[395007597,1764318639888,-26555.4438204,0.00016993,2]
[395007598,1764318639900,-90001.2510531,0.00016994,2]
[395007599,1764318639909,-3282.7222929,0.00016994,2]
[395007600,1764318639918,-300.0,0.00016999,2]
[395007601,1764318639927,-300.0,0.00016999,2]
[395007602,1764318639936,-300.0,0.00016999,2]
[395007603,1764318639946,-201.79898169,0.00016999,2]
[395007604,1764318639955,-458.58820067,0.00016999,2]
[395007605,1764318639964,-273692.90112072,0.00017,2]
[395007612,1764318643336,-747.28516159,0.00017,2]
[395007613,1764318645795,-965.28000006,0.00017,2]
[395007614,1764318711519,156.69,8.571e-05,2]
[395007615,1764319327358,1356.0,0.000156,3]
[395007616,1764319452368,1949.88270673,0.000156,5]
[395007617,1764319452389,3573.11729327,0.000156,5]
[395007633,1764319831855,-155.99,0.00016128,2]
[395007634,1764319831869,-200.0,0.00016291,2]
[395007635,1764319831881,-228.45325847,0.00016475,2]
[395007636,1764319831893,-477.56,0.0001681,2]
[395007637,1764319831904,-1200.0,0.00016829,2]
[395007638,1764319831916,-6879.63850567,0.0001683,2]
[395007639,1764319831928,-250.0,0.00016883,2]
[395007640,1764319831940,-293.56641359,0.00016898,2]
[395007642,1764319831951,-300.0,0.00016899,2]
[395007643,1764319831962,-210.011,0.000169,2]
[395007645,1764319831973,-551.8,0.000169,2]
[395007648,1764319831983,-150.0,0.000169,2]
[395007650,1764319831995,-1213.19,0.000169,2]
[395007652,1764319832010,-177.82,0.000169,2]
[395007654,1764319832020,-169.94,0.000169,2]
[395007655,1764319832030,-702.31,0.000169,2]
[395007656,1764319832040,-150.0,0.000169,2]
[395007657,1764319832050,-150.0,0.000169,2]
[395007658,1764319832060,-150.0,0.000169,2]
[395007659,1764319832071,-940.20545106,0.000169,2]
[395007660,1764319832082,-244.46926224,0.000169,2]
[395007662,1764319832092,-454.4022128,0.000169,2]
[395007664,1764319832104,-1568.31400625,0.000169,2]
[395007666,1764319832115,-159.44642,0.000169,2]
[395007668,1764319832125,-470.0261259,0.000169,2]
[395007670,1764319832136,-9211.34798985,0.00016925,2]
[395007672,1764319832147,-1400.0,0.00016925,2]
[395007675,1764319832163,-666.0,0.00016925,2]
[395007677,1764319832176,-9999.99,0.00016934,2]
[395007679,1764319832186,-150.99,0.00016934,2]
[395007680,1764319832197,-1991.14,0.00016934,2]
[395007681,1764319832207,-11806.39,0.00016934,2]
[395007682,1764319832218,-7492.19,0.00016934,2]
[395007683,1764319832228,-9486.53,0.00016934,2]
[395007684,1764319832239,-150.99,0.00016934,2]
[395007685,1764319832249,-2852.13,0.00016934,2]
[395007686,1764319832263,-9999.99,0.00016934,2]
[395007687,1764319832274,-2997.6595276,0.00016935,2]
[395007688,1764319832284,-68612.36814026,0.00016935,2]
[395007689,1764319837740,-500.0,0.00016934,2]
[395007690,1764319837751,-500.0,0.00016934,2]
[395007691,1764319837771,-500.0,0.00016934,2]
[395007692,1764319837784,-303.37099124,0.00016934,2]
[395007693,1764319837797,-500.0,0.00016934,2]
[395007694,1764319837809,-500.0,0.00016934,2]
[395007695,1764319837823,-500.0,0.00016934,2]
[395007696,1764319837835,-500.0,0.00016934,2]
[395007697,1764319837846,-500.0,0.00016934,2]
[395007698,1764319837857,-482.85148768,0.00016934,2]
[395007699,1764319837868,-500.0,0.00016934,2]
[395007700,1764319837882,-599.92646816,0.00016934,2]
[395007701,1764319837893,-500.0,0.00016934,2]
[395007702,1764319837905,-500.0,0.00016934,2]
[395007703,1764319837917,-500.0,0.00016934,2]
[395007704,1764319837929,-500.0,0.00016934,2]
[395007705,1764319837940,-500.0,0.00016934,2]
[395007706,1764319837951,-500.0,0.00016934,2]
[395007707,1764319837962,-500.0,0.00016934,2]
[395007708,1764319837972,-377.69387094,0.00016935,2]
[395007709,1764319837982,-5693.5659029,0.00016935,2]
[395007710,1764319837993,-500.0,0.00016935,2]
[395007711,1764319838003,-500.0,0.00016935,2]
[395007712,1764319838022,-500.0,0.00016935,2]
[395007713,1764319838033,-150.0,0.00016935,2]
[395007714,1764319838044,-150.0,0.00016935,2]
[395007715,1764319838055,-500.0,0.00016935,2]
[395007716,1764319838066,-500.0,0.00016935,2]
[395007717,1764319838077,-500.0,0.00016935,2]
[395007718,1764319838089,-157.99052045,0.00016935,2]
[395007719,1764319838099,-500.0,0.00016935,2]
[395007720,1764319838109,-500.0,0.00016935,2]
[395007721,1764319838119,-500.0,0.00016973,2]
[395007722,1764319838130,-500.0,0.00016973,2]
[395007723,1764319838140,-519.77806201,0.0001699,2]
[395007724,1764319838150,-767.01789712,0.0001699,2]
[395007725,1764319838161,-168.65381371,0.0001699,2]
[395007726,1764319838172,-586.49680459,0.0001699,2]
[395007727,1764319838182,-639.97413616,0.0001699,2]
[395007728,1764319838192,-625.65297059,0.0001699,2]
[395007729,1764319838201,-592.89351614,0.0001699,2]
[395007730,1764319838211,-268.64678523,0.0001699,2]
[395007731,1764319838221,-265.6003155,0.0001699,2]
[395007732,1764319838231,-521.6313094,0.0001699,2]
[395007733,1764319838241,-311.1,0.0001699,2]
[395007734,1764319838253,-300.0,0.00016999,2]
[395007735,1764319838269,-201.79898169,0.00016999,2]
[395007736,1764319838279,-458.58820067,0.00016999,2]
[395007737,1764319838289,-2679.0,0.00017,2]
[395007738,1764319838299,-69383.0827409,0.00017,2]
[395007744,1764319845760,-1886.05029783,0.00017,2]
[395007745,1764319845969,-1338.67363608,0.00017,2]
[395007746,1764319845981,-1169.3192,0.00017,2]
[395007747,1764319846024,-468.37725316,0.00017,2]
[395007748,1764319846036,-869.29227437,0.00017,2]
[395007757,1764319994518,837.21,0.00013699,2]
[395007759,1764320269456,160.35,0.00019178,30]
[395007778,1764321031815,-168.009,0.0001666,2]
[395007779,1764321031825,-179.28100154,0.000168,2]
[395007780,1764321031834,-300.0,0.00016899,2]
[395007781,1764321031844,-1200.0,0.00016899,2]
[395007782,1764321031853,-84.84562146,0.000169,2]
[395007783,1764321031864,-721.04476518,0.000169,2]
[395007784,1764321031874,-1114.90358244,0.000169,2]
[395007785,1764321031883,-1306.92833855,0.000169,2]
[395007786,1764321031892,-378.66851065,0.000169,2]
[395007787,1764321031901,-500.0,0.00016973,2]
[395007788,1764321031911,-501.06358284,0.00016973,2]
[395007789,1764321031920,-25067.6039256,0.00016988,2]
[395007790,1764321031929,-163.4371193,0.00016988,2]
[395007791,1764321031938,-500.0,0.0001699,2]
[395007792,1764321031947,-500.0,0.0001699,2]
[395007793,1764321031956,-500.0,0.0001699,2]
[395007794,1764321031966,-500.0,0.0001699,2]
[395007795,1764321031975,-500.0,0.0001699,2]
[395007796,1764321031984,-500.0,0.0001699,2]
[395007797,1764321031993,-500.0,0.0001699,2]
[395007798,1764321032002,-500.0,0.0001699,2]
[395007799,1764321032011,-500.0,0.0001699,2]
[395007800,1764321032020,-500.0,0.0001699,2]
[395007801,1764321032031,-500.0,0.0001699,2]
[395007802,1764321032042,-500.0,0.0001699,2]
[395007803,1764321032051,-500.0,0.0001699,2]
[395007804,1764321032060,-500.0,0.0001699,2]
[395007805,1764321032070,-500.0,0.0001699,2]
[395007807,1764321032079,-500.0,0.0001699,2]
[395007808,1764321032090,-500.0,0.0001699,2]
[395007810,1764321032099,-500.0,0.0001699,2]
[395007812,1764321032110,-500.0,0.0001699,2]
[395007815,1764321032122,-500.0,0.0001699,2]
[395007818,1764321032133,-568.34249325,0.0001699,2]
[395007821,1764321032143,-500.0,0.0001699,2]
[395007824,1764321032152,-500.0,0.0001699,2]
[395007825,1764321032161,-500.0,0.0001699,2]
[395007828,1764321032171,-311.1,0.0001699,2]
[395007831,1764321032180,-300.0,0.00016999,2]
[395007833,1764321032190,-179.85957124,0.00016999,2]
[395007835,1764321032200,-500.0,0.00016999,2]
[395007836,1764321032212,-220.31683196,0.00016999,2]
[395007839,1764321032222,-288.88071869,0.00016999,2]
[395007841,1764321032232,-4142.61,0.00017,2]
[395007843,1764321032241,-150.99,0.00017,2]
[395007845,1764321032251,-1730.0,0.00017,2]
[395007847,1764321032260,-67468.37903197,0.00017,2]
[395007850,1764321032279,-290.50101192,0.00017,2]
[395007853,1764321032304,-25595.22715973,0.00017,2]
[395007854,1764321032473,-4541.1999,0.00017,2]
[395007859,1764321037807,-313.3507506,0.000169,2]
[395007860,1764321037818,-91373.50697062,0.00017,2]
[395007861,1764321037863,-18308.6,0.00017,2]
[395007983,1764321039911,-36665.29804735,0.00017,2]
[395007984,1764321039964,-427.61913569,0.00017,2]
[395007985,1764321040178,-1169.60219242,0.00017,2]
[395007986,1764321040200,-608.70361918,0.00017,2]
[395007987,1764321040389,-13365.42815252,0.00017,2]
[395008010,1764321054799,-2426982.04808009,0.00017,2]
[395008011,1764321054808,-53421.51572666,0.00017,2]
[395008012,1764321054818,-3489.17729088,0.00017,2]
[395008013,1764321054827,-151.0,0.00017,2]
[395008014,1764321054836,-1009.76,0.00017,2]
[395008015,1764321054845,-74598.47041295,0.00017,2]
[395008016,1764321054854,-2427666.84936212,0.00017,2]
[395008017,1764321054863,-416.31927,0.00017,2]
[395008018,1764321054872,-2000.0,0.00017,2]
[395008019,1764321054881,-151.0,0.00017,2]
[395008020,1764321054891,-250.0,0.00017,2]
[395008021,1764321054900,-803.83,0.00017,2]
[395008022,1764321054909,-150.0,0.00017,2]
[395008023,1764321054918,-150.0,0.00017,2]
[395008024,1764321054927,-500.0,0.00017,2]
[395008025,1764321054936,-500.0,0.00017,2]
[395008026,1764321054945,-156.73025584,0.00017,2]
[395008027,1764321054953,-500.0,0.00017,2]
[395008028,1764321054962,-150.0,0.00017,2]
[395008029,1764321054971,-150.0,0.00017,2]
[395008030,1764321054980,-151.0,0.00017,2]
[395008031,1764321054989,-500.0,0.00017,2]
[395008032,1764321054998,-500.0,0.00017,2]
[395008033,1764321055007,-150.0,0.00017,2]
[395008034,1764321055016,-150.0,0.00017,2]
[395008035,1764321055025,-500.0,0.00017,2]
[395008036,1764321055036,-500.0,0.00017,2]
[395008037,1764321055047,-500.0,0.00017,2]
[395008038,1764321055055,-500.0,0.00017,2]
[395008039,1764321055065,-500.0,0.00017,2]
[395008040,1764321055073,-1554.66388,0.00017,2]
[395008041,1764321055084,-500.0,0.00017,2]
[395008042,1764321055093,-500.0,0.00017,2]
[395008043,1764321055102,-150.0,0.00017,2]
[395008044,1764321055112,-500.0,0.00017,2]
[395008045,1764321055121,-500.0,0.00017,2]
[395008046,1764321055130,-150.0,0.00017,2]
[395008047,1764321055139,-150.0,0.00017,2]
[395008048,1764321055148,-500.0,0.00017,2]
[395008049,1764321055157,-151.0,0.00017,2]
[395008050,1764321055166,-992831.25065382,0.00017,2]
[395008051,1764321055175,-151.0,0.00017,2]
[395008052,1764321055184,-151.0,0.00017,2]
[395008053,1764321055193,-250.0,0.00017023,2]
[395008054,1764321055202,-200.0,0.00017042,2]
[395008055,1764321055211,-168.97,0.00017057,2]
[395008056,1764321055220,-166.66,0.00017095,2]
[395008057,1764321055229,-150.0,0.00017097,2]
[395008058,1764321055238,-1003.2403803,0.00017111,2]
[395008059,1764321055248,-159.03008291,0.00017137,2]
[395008060,1764321055257,-150.0,0.00017137,2]
[395008061,1764321055267,-500.0,0.00017137,2]
[395008062,1764321055276,-560.29984837,0.00017137,2]
[395008063,1764321055285,-500.0,0.00017137,2]
[395008064,1764321055294,-150.0,0.00017137,2]
[395008065,1764321055303,-150.0,0.00017137,2]
[395008066,1764321055312,-500.0,0.00017137,2]
[395008067,1764321055322,-500.0,0.00017137,2]
[395008068,1764321055331,-150.0,0.00017137,2]
[395008069,1764321055341,-150.0,0.00017137,2]
[395008070,1764321055350,-500.0,0.00017137,2]
[395008071,1764321055359,-500.0,0.00017137,2]
[395008072,1764321055369,-500.0,0.00017137,2]
[395008073,1764321055378,-500.0,0.00017137,2]
[395008074,1764321055388,-500.0,0.00017137,2]
[395008075,1764321055397,-500.0,0.00017137,2]
[395008076,1764321055406,-500.0,0.00017137,2]
[395008077,1764321055416,-500.0,0.00017137,2]
[395008078,1764321055426,-500.0,0.00017137,2]
[395008079,1764321055435,-150.0,0.00017137,2]
[395008080,1764321055445,-500.0,0.00017137,2]
[395008081,1764321055454,-999.0,0.0001714,3]
[395008082,1764321055464,-156.69,0.00017142,2]
[395008083,1764321055474,-177.82,0.000172,2]
[395008084,1764321055484,-228.02,0.000172,2]
[395008085,1764321055494,-551.8,0.000172,2]
[395008086,1764321055503,-154.88,0.000172,2]
[395008087,1764321055514,-152.41,0.000172,2]
[395008088,1764321055523,-1213.19,0.000172,2]
[395008089,1764321055533,-169.94,0.000172,2]
[395008090,1764321055542,-151.94,0.000172,2]
[395008091,1764321055551,-1336.64,0.000172,2]
[395008092,1764321055560,-150.0,0.000172,2]
[395008093,1764321055571,-551.8,0.000172,2]
[395008094,1764321055581,-150.0,0.000172,2]
[395008095,1764321055590,-177.82,0.000172,2]
[395008096,1764321055599,-150.0,0.000172,2]
[395008097,1764321055608,-1213.19,0.000172,2]
[395008098,1764321055618,-169.94,0.000172,2]
[395008099,1764321055627,-702.31,0.000172,2]
[395008100,1764321055636,-150.0,0.000172,2]
[395008101,1764321055645,-551.8,0.000172,2]
[395008102,1764321055654,-150.0,0.000172,2]
[395008103,1764321055663,-150.0,0.000172,2]
[395008104,1764321055672,-150.0,0.000172,2]
[395008105,1764321055682,-150.0,0.000172,2]
[395008106,1764321055691,-177.82,0.000172,2]
[395008107,1764321055700,-702.31,0.000172,2]
[395008108,1764321055709,-1213.19,0.000172,2]
[395008109,1764321055719,-150.0,0.000172,2]
[395008110,1764321055728,-408.62,0.000172,2]
[395008111,1764321055737,-1213.19,0.000172,2]
[395008112,1764321055747,-150.0,0.000172,2]
[395008113,1764321055757,-551.8,0.000172,2]
[395008114,1764321055766,-702.31,0.000172,2]
[395008115,1764321055776,-150.0,0.000172,2]
[395008116,1764321055785,-150.0,0.000172,2]
[395008117,1764321055794,-551.8,0.000172,2]
[395008118,1764321055804,-150.0,0.000172,2]
[395008119,1764321055814,-150.0,0.000172,2]
[395008120,1764321055823,-551.8,0.000172,2]
[395008121,1764321055832,-150.0,0.000172,2]
[395008122,1764321055842,-150.0,0.000172,2]
[395008123,1764321055852,-702.31,0.000172,2]
[395008124,1764321055861,-551.8,0.000172,2]
[395008125,1764321055870,-150.0,0.000172,2]
[395008126,1764321055880,-702.31,0.000172,2]
[395008127,1764321055890,-150.0,0.000172,2]
[395008128,1764321055899,-551.8,0.000172,2]
[395008129,1764321055909,-150.0,0.000172,2]
[395008130,1764321055918,-702.31,0.000172,2]
[395008131,1764321055928,-702.31,0.000172,2]
[395008132,1764321055938,-150.0,0.00017274,2]
[395008133,1764321055947,-500.0,0.00017274,2]
[395008134,1764321055956,-500.0,0.00017274,2]
[395008135,1764321055966,-265.94233196,0.00017274,2]
[395008136,1764321055986,-150.0,0.00017274,2]
[395008137,1764321055996,-500.0,0.00017274,2]
[395008138,1764321056005,-500.0,0.00017274,2]
[395008139,1764321056015,-153.6026223,0.00017274,2]
[395008140,1764321056024,-176.74962171,0.00017274,2]
[395008141,1764321056036,-500.0,0.00017274,2]
[395008142,1764321056047,-500.0,0.00017274,2]
[395008143,1764321056057,-500.0,0.00017274,2]
[395008144,1764321056067,-500.0,0.00017274,2]
[395008145,1764321056077,-500.0,0.00017274,2]
[395008146,1764321056086,-500.0,0.00017274,2]
[395008147,1764321056096,-500.0,0.00017274,2]
[395008148,1764321056107,-500.0,0.00017274,2]
[395008149,1764321056117,-500.0,0.00017274,2]
[395008150,1764321056127,-150.0,0.00017274,2]
[395008151,1764321056137,-500.0,0.00017274,2]
[395008152,1764321056146,-803.83,0.00017274,2]